Cogmind - Beta 12 @@@ ROGUE MODE // 2023.05.10 @ 00:36:44 Player: o8643 Result: Self-destructed Performance ------------- Evolutions (1) 500 Regions Visited (2) 400 Robots Destroyed (11) 55 Value Destroyed (194) 194 Prototype IDs (2) 40 Alien Tech Used (0) 0 Bonus (0) 0 TOTAL SCORE: 1189 Bonus ------- None Cogmind --------- Core Integrity 43/400 Matter 294/300 Energy 100/100 System Corruption 0% Temperature Cool (15) Movement Core (50) Location -9/Materials Parts ------- > --- POWER (1) -------- (None) > --- PROPULSION (3) --- (None) > --- UTILITY (3) ------ (None) > --- WEAPON (2) ------- (None) > --- INVENTORY (5) ---- Flight Unit Flight Unit Flight Unit Peak State ------------ > --- POWER ------------ Cooled Ion Engine > --- PROPULSION ------- Light Treads Light Treads > --- UTILITY ---------- Improved Heat Sink Small Storage Unit > --- WEAPON ----------- Improved Light Cannon Improved Light Cannon > --- INVENTORY -------- Ion Engine Light Ion Engine Cooled Ion Engine Aluminum Leg Aluminum Leg EM Pulse Gun Improved Light Cannon Improved Light Cannon [Rating: 14] Favorites ----------- Power Cooled Ion Engine Engine Cooled Ion Engine Propulsion Light Treads Treads Light Treads Flight Unit Flight Unit Utility Small Storage Unit Device Improved Heat Sink Storage Small Storage Unit Protection Light Armor Plating Weapon Assault Rifle Ballistic Gun Assault Rifle Ballistic Cannon Improved Light Cannon Launcher Rocket Launcher Impact Weapon Heavy Hammer Build | -11 -10 -9 ------- Run | Jun Mat Mat Slots Evolved 2 | . . 2 Power . | . . . Propulsion 1 | . . 1 Utility 1 | . . 1 Weapon . | . . . Parts Attached 26 | 6 11 9 Power 5 | 1 3 1 Engine 5 | 1 3 1 Core . | . . . Reactor . | . . . Propulsion 10 | 2 3 5 Treads 2 | 2 . . Leg . | . . . Wheel . | . . . Hover . | . . . Flight 8 | . 3 5 Utility 5 | 1 2 2 Device 1 | . 1 . Storage 1 | 1 . . Processor . | . . . Hackware . | . . . Protection 3 | . 1 2 Artifact . | . . . Weapon 6 | 2 3 1 Energy Gun . | . . . Energy Cannon . | . . . Ballistic Gun 2 | 2 . . Ballistic Cannon 2 | . 2 . Launcher 1 | . . 1 Special Weapon . | . . . Impact Weapon 1 | . 1 . Slashing Weapon . | . . . Piercing Weapon . | . . . Special Melee Weapon . | . . . Unidentified Prototypes 2 | . 1 1 Parts Lost 7 | . . 7 Power 1 | . . 1 Propulsion 4 | . . 4 Utility 1 | . . 1 Weapon 1 | . . 1 Highest Loss Streak 7 | . . 7 To Critical Strikes . | . . . Average Slot Usage (%) 66 | . 74 49 Engine 10 | . 10 9 Treads 12 | . 17 . Flight 15 | . 9 29 Device 2 | . 4 . Storage 6 | . 9 . Protection 1 | . 1 1 Ballistic Gun 5 | . 7 . Ballistic Cannon 6 | . 9 . Impact Weapon 5 | . 3 7 Naked Turns 8 | . . 8 Heaviest Build 22 | 12 22 12 Greatest Support 40 | 40 40 13 Greatest Overweight (x) 4 | 2 4 . Average Overweight (x) . | . . . Largest Inventory Capacity 8 | 8 8 5 Average Capacity 6 | 7 6 5 Most Carried 8 | 4 8 5 Average Carried 4 | 1 5 4 Final Capacity 8 | 8 5 5 Final Carried 5 | 4 5 3 Class Distribution -------------------- 79% | Mutant 20% | Sprinter Dominant Class ---------------- Mutant | -10/Materials Sprinter | -9/Materials Resources | -11 -10 -9 ----------- Run | Jun Mat Mat Matter Collected 488 | 235 174 79 Remotely . | . . . Salvage Created 327 | . 175 152 Parts 16 | . 6 10 Haulers Intercepted 2 | . 1 1 Recyclers Shooed . | . . . Parts Field Recycled . | . . . Retrieved Matter . | . . . Parts Self-Destructed . | . . . Prevented . | . . . Kills | -11 -10 -9 ------- Run | Jun Mat Mat Combat Hostiles Destroyed 4 | . 2 2 Guns 2 | . 2 . AOE 2 | . . 2 Classes Destroyed 5 | . 3 2 Worker 2 | . . 2 Tunneler 1 | . . 1 Hauler 2 | . 1 1 Watcher 2 | . 2 . Grunt 4 | . 2 2 Best Kill Streak 3 | . 3 3 Combat Bots Only 2 | . 2 2 Max Kills in Single Turn 2 | . 1 2 Gunslinging . | . . . Exploded 2 | . . 2 Melee . | . . . Uniques/NPCs Destroyed . | . . . Combat | -11 -10 -9 -------- Run | Jun Mat Mat Damage Taken 1004 | . 192 812 Core 433 | . 76 357 Absorbed by Shields . | . . . Core Remaining (%) 84 | 100 69 . Volleys Fired 10 | . 9 1 Largest 2 | . 2 1 Hottest 78 | . 78 33 Shots Fired 19 | . 18 1 Gun 14 | . 14 . Cannon 4 | . 4 . Launcher 1 | . . 1 Special . | . . . Kinetic 18 | . 18 . Thermal . | . . . Explosive 1 | . . 1 Electromagnetic . | . . . Robot Hit Streak 8 | . 8 . Robot Miss Streak 3 | . 3 . Penetration Max . | . . . Secondary Targets . | . . . Shots Hit Robots 18 | . 12 6 Core Hits 11 | . 7 4 Critical Kills . | . . . Critical Parts Destroyed 3 | . 1 2 Critical Strikes 3 | . 1 2 Smash 3 | . 1 2 Melee Attacks 16 | . 6 10 Impact 16 | . 6 10 Slashing . | . . . Piercing . | . . . Sneak Attacks 4 | . 1 3 Combat Hostiles . | . . . Follow-up Attacks . | . . . Damage Inflicted 881 | . 315 566 Guns 101 | . 101 . Cannons 19 | . 19 . Explosions 121 | . . 121 Melee 640 | . 195 445 Ramming . | . . . Kinetic 120 | . 120 . Thermal . | . . . Explosive 121 | . . 121 Electromagnetic . | . . . Impact 640 | . 195 445 Slashing . | . . . Piercing . | . . . Highest Corruption . | . . . Average Corruption . | . . . Corruption Purged . | . . . Corruption Blocked . | . . . Overload Shots . | . . . Overflow Damage 378 | . 74 304 Projectiles . | . . . Explosions . | . . . Melee 378 | . 74 304 Knockbacks 1 | . 1 . Impact 1 | . 1 . Kinetic . | . . . Secondary . | . . . Self-Inflicted Damage . | . . . Shots . | . . . Rammed . | . . . Targets Rammed . | . . . Kicked . | . . . Crushed . | . . . Highest Temperature 11 | . 2 11 Average Temperature 3 | . 2 4 Received Heat Transfer 321 | . 27 294 Siege Activations . | . . . Robots Corrupted . | . . . Combat Hostiles . | . . . Parts Fried 2 | . 1 1 Impact Corruptions 11 | . 3 8 Robots Melted . | . . . Combat Hostiles . | . . . Parts Melted . | . . . Heat Transferred . | . . . Parts Sabotaged . | . . . Parts Stolen . | . . . Parts Stripped . | . . . Power Chain Reactions . | . . . Missiles Intercepted . | . . . Alert | -11 -10 -9 ------- Run | Jun Mat Mat Peak Influence 230 | . 227 230 Initial 95 | . . 95 Average 88 | . 84 146 Maximum Alert Level 1 | . 1 1 Low Security (%) 92 | 100 95 82 Level 1 7 | . 4 17 Level 2 . | . . . Level 3 . | . . . Level 4 . | . . . Level 5 . | . . . High Security . | . . . Max Security . | . . . Squads Dispatched 1 | . . 1 Investigation . | . . . Extermination . | . . . Reinforcement 1 | . . 1 Assault . | . . . Garrison . | . . . Intercept . | . . . Searches Triggered . | . . . Construction Impeded . | . . . Haulers Reinforced . | . . . Active Scanning Responses . | . . . Cargo Convoy Interrupts . | . . . Stealth | -11 -10 -9 --------- Run | Jun Mat Mat Distress Signals 3 | . 1 2 Communications Jammed . | . . . Distress Signals . | . . . Times Spotted 30 | . 15 15 Peak Tracking Total 14 | . 4 14 Tactical Retreats 3 | . 3 . Traps | -11 -10 -9 ------- Run | Jun Mat Mat Traps Triggered . | . . . Indirectly . | . . . Trap Hack Attempts . | . . . Triggered . | . . . Disarmed . | . . . Reprogrammed . | . . . Reused . | . . . Traps Extracted . | . . . Installed . | . . . Triggered . | . . . Machines | -11 -10 -9 ---------- Run | Jun Mat Mat Machines Disabled . | . . . Max in Single Turn . | . . . Machines Repaired . | . . . Machines Sabotaged . | . . . Overloaded Fab Kills . | . . . Hacking | -11 -10 -9 --------- Run | Jun Mat Mat Machines Accessed 8 | . 5 3 Terminals 6 | . 3 3 Fabricators . | . . . Repair Stations . | . . . Recycling Units 2 | . 2 . Scanalyzers . | . . . Garrison Access . | . . . Total Hacks 25 | . 14 11 Successful 11 | . 7 4 Failed 14 | . 7 7 Catastrophic 4 | . 1 3 Database Lockouts . | . . . Manual 11 | . 7 4 Terminals 20 | . 9 11 Fabricators . | . . . Repair Stations . | . . . Recycling Units 5 | . 5 . Scanalyzers . | . . . Garrison Access . | . . . Terminal Hacks 3 | . 1 2 Branch Access Points 1 | . . 1 Locate Traps 1 | . . 1 Zone Layout 1 | . 1 . Fabricator Hacks . | . . . Repair Station Hacks . | . . . Recycling Unit Hacks 3 | . 3 . Process 1 | . 1 . Retrieve Components 2 | . 2 . Scanalyzer . | . . . Garrison Access Hacks . | . . . Unauthorized Hacks 5 | . 3 2 Terminals 5 | . 3 2 Botnet 5 | . 3 2 Fabricators . | . . . Repair Stations . | . . . Recycling Units . | . . . Scanalyzers . | . . . Garrison Access . | . . . Data Cores Recovered . | . . . Used . | . . . Hacking Detections 8 | . 5 3 Full Trace Events 1 | . 1 . Feedback Events . | . . . Feedback Blocked . | . . . Robot Schematics Acquired . | . . . Robots Built . | . . . Authchips . | . . . Time . | . . . Total Robot Build Rating . | . . . Part Schematics Acquired . | . . . Parts Built . | . . . Authchips . | . . . Time . | . . . Total Part Build Rating . | . . . Parts Repaired . | . . . Time . | . . . Parts Recycled . | . . . Recycled Matter 552 | . 552 . Retrieved Matter . | . . . Retrieved Components 2 | . 2 . Parts Scanalyzed . | . . . Part Schematics Acquired . | . . . Parts Damaged . | . . . Bothacking | -11 -10 -9 ------------ Run | Jun Mat Mat Used RIF Installer . | . . . Robots Hacked . | . . . Non-combat . | . . . Combat . | . . . Robot Hacks Applied . | . . . Relay Couplers Released . | . . . Fabnet Peak Effective % . | . . . Robots Rewired . | . . . Allies Hacked . | . . . Hacks Repelled . | . . . Allies | -11 -10 -9 -------- Run | Jun Mat Mat Total Allies . | . . . Largest Group . | . . . Highest-Rated Group . | . . . Highest-Rated Ally . | . . . Total Orders . | . . . Ally Attacks . | . . . Total Damage . | . . . Kills . | . . . Allies Corrupted . | . . . Allies Melted . | . . . Intel | -11 -10 -9 ------- Run | Jun Mat Mat Robot Analysis Total . | . . . Derelict Logs Recovered . | . . . Drone Launches . | . . . Drone Recoveries . | . . . Exploration | -11 -10 -9 ------------- Run | Jun Mat Mat Turns Passed 672 | 98 399 175 Spaces Moved 791 | 57 402 332 Core 12 | 9 3 . Treads 177 | 48 129 . Legs . | . . . Wheels . | . . . Hover . | . . . Flight 602 | . 270 332 Fastest Speed 32 | 50 37 32 Average Speed 64 | 151 78 32 Slowest Speed 250 | 160 250 40 Overloaded Moves . | . . . Propulsion Burnouts . | . . . Robots Hopped 2 | . . 2 Cave-ins Triggered . | . . . Exploration Rate (%) 29 | 5 45 37 Regions Visited 2 Branch Regions . Pre-discovered Areas . | . . . Known Exits Taken . | . . . Unknown Exits Taken 2 | 1 1 . Scrap Searched . | . . . Spaces Dug . | . . . Terrain Destroyed 11 | . 1 10 Melee . | . . . Projectile 1 | . 1 . AOE 10 | . . 10 Terrain Rammed . | . . . Walls Destroyed . | . . . Machines Disabled . | . . . Actions | -11 -10 -9 --------- Run | Jun Mat Mat Total 906 | 66 462 378 Wait 29 | . 6 23 Move 786 | 56 401 329 Hop 1 | . . 1 Pick Up 16 | 4 11 1 Fast Attach 13 | 6 6 1 Attach 7 | . 2 5 Detach 3 | . 1 2 Swap 6 | . 3 3 Drop 19 | . 17 2 Fire 10 | . 9 1 Melee 16 | . 6 10 Ram . | . . . Kick . | . . . Crush . | . . . Escape Stasis . | . . . Rewire . | . . . Trap . | . . . Miscellaneous . | . . . Route ------- -11/Junkyard -10/Materials (discovered 2 exits: *Mat / [*Min]) -9/Materials (discovered 2 exits: *Min x2) History --------- Turn | Location | Event 2 | -11/Junkyard | Discovered new exit (range 16) 99 | -11/Junkyard | Entered Materials 315 | -10/Materials | Build established: Mutant 377 | -10/Materials | Discovered new exit (range 16) 453 | -10/Materials | Discovered new exit (range 6) 498 | -10/Materials | Entered another Materials area 498 | -9/Materials | Evolved 2 slots: Propulsion x1, Utility x1 569 | -9/Materials | Identified exit to Mines 666 | -9/Materials | Core integrity fell below 50% 673 | -9/Materials | Core integrity fell below 20% 673 | -9/Materials | Self-destructed Last Messages --------------- 00661_ K-01 Serf collects debris. 00661_ U-05 Engineer lays Concrete. 00662_ K-01 Serf collects debris. 00662_ U-05 Engineer lays Concrete. 00665_ Imp. Flight Unit destroyed. 00665_ K-01 Serf collects debris. 00666_ U-05 Engineer lays Concrete. 00667_ K-01 Serf collects debris. 00667_ U-05 Engineer lays Concrete. 00668_ K-01 Serf collects debris. 00668_ U-05 Engineer lays Concrete. 00669_ K-01 Serf collects debris. 00669_ U-05 Engineer lays Concrete. 00669_ K-01 Serf collects debris. 00670_ U-05 Engineer builds a Wall. 00670_ U-05 Engineer lays Concrete. 00672_ K-01 Serf collects debris. 00672_ U-05 Engineer builds a Wall. 00672_ U-05 Engineer lays Concrete. 00673_ K-01 Serf collects debris. Map ----- +----------------------------------------------------+ | ?????????????????????????????????????????????????? | | +######??????????????????????????????????????????? | | #??????????????????????????????????????????? | | #??????????????????????????????????????????? | | #???????????????????????????>??????????????? | | #???????????????????#??????????????????????? | | !#?????????????????? ###? ??????????????????? | | #???????????###+### # ??????????????????? | | #???????????# = #####?????????????? | | #???????????# %== ??????????????? | | #########??## %[ ??????????????? | | #"""""""####" ????????????????? | | #" |"| "## # # ?????????????????? | | ####+##" "##;;;u k#????????????????????? | | r #????????##??????????? | | > #??????!= #??????????? | | ! u #???? !]= ???????????? | | #### ## ## *! #?? !]?????????????? | | ??# ######### u * # """ ????????????? | | ??############;; = + """ ????????????? | | ??????# ;;k% # """ ????????????? | | ??????# """"" ;; !! #?? ?????????????? | | ??????# """"" ;# k !!! #???? ???????????? | | ??????# """" ; u gYmgY! #??????###???????????? | | ?????## ; w Y[!* #????????????????????? | | ?????#+ """" ; kg%! @ #????????????????????? | | ?????## """"" ##;;;;;##### ##????????????????????? | | ??????# """"" ### ## #?????????????????????? | | ??????# #?# ## #?????????????????????? | | ??????########### ## #?????????????????????? | | ??????# # """ ## #?????????????????????? | | ??????# # """ ## #?????????????????????? | | ??????# # """ ##=#?????????????????????? | | ??????# # #!#?????????????????????? | | ??????# # " "" ##!#?????????????????????? | | ??????# # "R"" ##%#?????????????????????? | | ??????# # """ ##!#?????????????????????? | | ??????# [ # ##!#?????????????????????? | | ??????######+#############!#?????????????????????? | | ########## ########### #######???????????????? | | ????????? | | ????????? | | ????????? | | ########## ###+################# ?????????? | | #????####### ????????????????????????????? | | " #??????????# ""??????????????????????????? | | "" #??????????# """#????????????????????????? | | "" #??????????# """#????????????????????????? | | "" #??????????# #????????????????????????? | | " #??????????# """#????????????????????????? | +----------------------------------------------------+ Best States ------------- Heat Dissipation 39 Energy Generation 14 Energy Capacity 280 Matter Stores 300 Matter Capacity 300 Sight Range 16 Terrain Scan Density 10 Armor Coverage 150 Evasion (%) 63 Recoil Reduction 2 Item Schematics ----------------- None Robot Schematics ------------------ None Fabricated ------------ Nothing Alien Tech Used ----------------- None Achievements -------------- None Challenges ------------ None Game ------ Seed CoreDeliveryWings Manual? 0 Play Time 00:17:33 Cumulative 29.1 hours Start 2023.05.10 @ 00:24:26 End 2023.05.10 @ 00:36:44 Sessions 1 Manual Loads 0 Difficulty Rogue Special Mode None Game No. 42 Rogue 42 Adventurer 0 Explorer 0 Win Type - Total 0 Types 0/0/0/0/0/0/0/0/0 Lore% 15 Gallery% 27 Achievement% 21 Wizard Run 0 Options --------- ASCII 0 Keyboard 1 Movement Numpad Keybinds 0 Fullscreen 1 Font 18/X11Bold Map View 76x50 Tactical HUD 1 Map Filters NONE Filters NONE Steam 1 RUN: e9a2127e-b4c4-45f3-936e-d553d669e32e